bitfinex-derivatives/quotes_BTCF0:USTF0_20210102
["timestamp","ask_amount","ask_price","bid_price","bid_amount"]
[1609565587117,0.00041256,29532.0,29530.0,1.18080191]
[1609565587317,0.00041256,29531.0,29530.0,1.18080191]
[1609565587718,0.13825,29533.0,29530.0,1.18080191]
[1609565587719,0.00041256,29532.0,29530.0,1.18080191]
[1609565587919,0.00041256,29531.0,29530.0,1.18080191]
[1609565588117,0.00041256,29531.0,29530.0,1.18043158]
[1609565588319,0.00041254,29532.0,29530.0,1.18080189]
[1609565588518,0.00041254,29532.0,29530.0,0.18080189]
[1609565588718,2.48414681,29536.0,29531.0,4.4345]
[1609565588918,2.48414681,29536.0,29531.0,4.43487028]
[1609565589117,0.00041249,29535.0,29532.0,0.00037026]
[1609565589520,0.00041249,29535.0,29534.0,0.18043158]
[1609565589921,0.00041246,29535.0,29534.0,0.18080181]
[1609565590318,2.48414681,29536.0,29535.0,0.00037023]
[1609565590519,2.48414681,29536.0,29534.0,0.18080181]
[1609565590720,2.48455927,29536.0,29535.0,0.00037023]
[1609565591020,2.48455927,29536.0,29535.0,0.00037025]
[1609565591822,2.48455927,29536.0,29535.0,0.00037027]
[1609565592225,2.48249985,29536.0,29535.0,0.00037027]
[1609565592423,3.48249985,29536.0,29535.0,0.00037027]
[1609565593123,3.48249985,29536.0,29535.0,0.00037031]
[1609565593523,3.66293143,29536.0,29535.0,0.00037031]
[1609565596329,3.66293143,29536.0,29525.0,0.00037036]
[1609565596529,4.66293143,29536.0,29525.0,0.00037036]
[1609565596930,0.00041265,29535.0,29523.0,0.0003704]
[1609565597131,0.66592957,29535.0,29523.0,0.0003704]
[1609565597534,0.66592957,29535.0,29534.0,0.18043158]
[1609565597733,0.66551692,29535.0,29534.0,0.18043158]
[1609565597936,0.17153258,29535.0,29534.0,0.18080193]
[1609565600635,0.17153258,29535.0,29534.0,1.18080193]
[1609565602536,0.17153258,29535.0,29534.0,0.18080193]
[1609565602737,0.17153254,29535.0,29534.0,0.18080193]
[1609565603938,0.17112,29535.0,29534.0,0.18080193]
[1609565604140,2.48208739,29536.0,29534.0,0.18080193]
[1609565604438,2.48208739,29536.0,29535.0,0.00037031]
[1609565605040,2.48249992,29536.0,29535.0,0.00037031]
[1609565608742,2.48208739,29536.0,29535.0,0.00037031]
[1609565609542,2.48249992,29536.0,29535.0,0.00037031]
[1609565609742,2.48208739,29536.0,29535.0,0.00037031]
[1609565610043,2.48249993,29536.0,29535.0,0.00037031]
[1609565613748,2.48208739,29536.0,29535.0,0.00037031]
[1609565613947,2.48249991,29536.0,29535.0,0.00037031]
[1609565635681,2.48249991,29536.0,29535.0,6.59547031]
[1609565636281,2.48249991,29536.0,29535.0,5.59547031]
[1609565637584,2.48249991,29536.0,29535.0,0.00037031]
[1609565637784,2.48249991,29536.0,29535.0,4.50077031]
[1609565637982,2.48249991,29536.0,29535.0,0.00037031]
[1609565638183,2.48249991,29536.0,29535.0,5.24397031]
[1609565638383,2.48249991,29536.0,29535.0,0.00037031]
[1609565639785,2.48208739,29536.0,29535.0,0.00037031]
[1609565642488,2.48208739,29536.0,29535.0,1.00037031]
[1609565643590,2.48249986,29536.0,29535.0,1.00037031]
[1609565643791,2.66293144,29536.0,29535.0,1.00037031]
[1609565644493,2.66293144,29536.0,29535.0,0.00037031]
[1609565644892,2.48249986,29536.0,29535.0,4.19687031]
[1609565645593,2.48208739,29536.0,29535.0,4.19687031]
[1609565646394,2.48208739,29536.0,29535.0,5.19687031]
[1609565646594,2.48208739,29536.0,29535.0,6.19687031]
[1609565647295,2.48208739,29536.0,29535.0,5.19687031]
[1609565647896,2.48208739,29536.0,29535.0,6.19687031]
[1609565648496,2.48208739,29536.0,29535.0,5.19687031]
[1609565649799,2.48208739,29536.0,29535.0,4.19687031]
[1609565649999,2.4800285,29536.0,29535.0,4.19687031]
[1609565650606,2.4800285,29536.0,29535.0,1.00037031]
[1609565652599,2.4800285,29536.0,29535.0,7.00037031]
[1609565652799,2.4800285,29536.0,29535.0,12.05437031]
[1609565653002,2.4800285,29536.0,29535.0,7.00037031]
[1609565655605,2.4800285,29536.0,29535.0,8.72211172]
[1609565656301,2.4800285,29536.0,29535.0,8.76334452]
[1609565656502,2.4800285,29536.0,29535.0,8.72211172]
[1609565659304,2.3951285,29536.0,29535.0,8.72211172]
[1609565659605,2.3951285,29536.0,29535.0,8.76334431]
[1609565660005,2.3806285,29536.0,29535.0,8.76334431]
[1609565660505,2.3806285,29536.0,29535.0,2.76334431]
[1609565660706,2.2084702,29536.0,29535.0,2.76334431]
[1609565661307,1.2084702,29536.0,29535.0,2.76334431]
[1609565661607,1.2084702,29536.0,29535.0,8.76334431]
[1609565662709,1.1264702,29536.0,29535.0,8.76334431]
[1609565663612,1.1264702,29536.0,29535.0,2.76334431]
[1609565664111,1.0756702,29536.0,29535.0,2.76334431]
[1609565664311,1.0329702,29536.0,29535.0,2.76334431]
[1609565664611,1.0262702,29536.0,29535.0,2.76334431]
[1609565665812,1.0160702,29536.0,29535.0,8.76334431]
[1609565666014,1.0069702,29536.0,29535.0,8.76334431]
[1609565666317,0.80114131,29536.0,29535.0,10.72594985]
[1609565666514,0.78514131,29536.0,29535.0,10.72594985]
[1609565667115,0.75194131,29536.0,29535.0,10.72594985]
[1609565667317,0.73444131,29536.0,29535.0,10.72594985]
[1609565667618,0.73444131,29536.0,29535.0,4.72594985]
[1609565669219,0.73444131,29536.0,29535.0,3.72594985]
[1609565669420,0.56854131,29536.0,29535.0,4.72594985]
[1609565669621,0.25981031,29536.0,29535.0,6.88132454]
[1609565669820,0.17681031,29536.0,29535.0,12.88132454]
[1609565670623,0.17681031,29536.0,29535.0,10.72594985]
[1609565671424,0.10481031,29536.0,29535.0,10.72594985]
[1609565673228,0.1027522,29536.0,29535.0,12.87862429]
[1609565673627,0.1027522,29536.0,29535.0,6.87862429]
[1609565675128,0.1027522,29536.0,29535.0,5.87862429]
[1609565675830,2.11065878,29549.0,29535.0,11.87862429]
[1609565676333,2.11065878,29549.0,29536.0,0.04160005]
[1609565677232,2.11065878,29549.0,29539.0,1.72282016]
[1609565677631,2.11065878,29549.0,29548.0,1.0]
[1609565678033,2.11065878,29549.0,29548.0,1.31501378]
[1609565681641,2.11065878,29549.0,29548.0,0.31501378]
[1609565682842,3.11065878,29549.0,29548.0,0.31501378]
[1609565683442,3.10901262,29549.0,29548.0,0.31501378]
[1609565683641,4.10901262,29549.0,29548.0,0.31501378]
[1609565683841,3.10901262,29549.0,29548.0,0.31501378]
[1609565684442,4.10901262,29549.0,29548.0,0.31501378]
[1609565687751,3.10901262,29549.0,29548.0,0.31501378]
[1609565688653,2.10901262,29549.0,29548.0,0.31501378]
[1609565689454,2.1086003,29549.0,29548.0,0.31501378]
[1609565689654,3.1086003,29549.0,29548.0,0.31501378]
[1609565689955,3.10901268,29549.0,29548.0,0.31501378]
[1609565690458,3.1086003,29549.0,29548.0,0.31501378]
[1609565692857,3.10901267,29549.0,29548.0,0.31501378]
[1609565693062,3.1086003,29549.0,29548.0,0.31501378]
[1609565693360,3.10901268,29549.0,29548.0,0.31501378]
[1609565693661,4.10901268,29549.0,29548.0,0.31501378]
[1609565693862,4.1086003,29549.0,29548.0,0.31501378]
[1609565695667,3.1086003,29549.0,29548.0,0.31501378]
[1609565696363,2.1086003,29549.0,29548.0,0.31501378]
[1609565696966,2.1086003,29549.0,29548.0,5.17971378]
[1609565698466,2.1086003,29549.0,29548.0,0.31501378]
[1609565701372,2.10654203,29549.0,29548.0,0.31501378]
[1609565708480,3.10654203,29549.0,29548.0,0.31501378]
[1609565708779,2.10654203,29549.0,29548.0,0.31501378]
[1609565709181,3.10654203,29549.0,29548.0,0.31501378]
[1609565709382,2.10654203,29549.0,29548.0,0.31501378]
[1609565713391,2.10448392,29549.0,29548.0,0.31501378]
[1609565713994,3.10448392,29549.0,29548.0,0.31501378]
[1609565715995,2.10448392,29549.0,29548.0,0.31501378]
[1609565716897,3.10448392,29549.0,29548.0,0.31501378]
[1609565719298,2.10448392,29549.0,29548.0,0.31501378]
[1609565723901,3.10448392,29549.0,29548.0,0.31501378]
[1609565724503,2.10448392,29549.0,29548.0,0.31501378]
[1609565726805,3.10448392,29549.0,29548.0,0.31501378]
[1609565727005,3.10489621,29549.0,29548.0,0.1345822]
[1609565727406,2.10489621,29549.0,29548.0,0.1345822]
[1609565727805,3.10489621,29549.0,29548.0,0.1345822]
[1609565728406,3.28532779,29549.0,29548.0,0.1345822]
[1609565729208,3.10489621,29549.0,29548.0,0.1345822]
[1609565729408,3.10489621,29549.0,29548.0,4.3743822]
[1609565729711,2.10489621,29549.0,29548.0,4.3743822]
[1609565730111,2.10448392,29549.0,29548.0,4.3743822]
[1609565731814,2.10448392,29549.0,29548.0,5.3743822]
[1609565733615,2.10448392,29549.0,29548.0,4.3743822]
[1609565734720,2.10489622,29549.0,29548.0,0.1345822]
[1609565734919,2.10448392,29549.0,29548.0,0.1345822]
[1609565736417,2.10489622,29549.0,29548.0,0.1345822]
[1609565739323,2.10448392,29549.0,29548.0,0.1345822]
[1609565740429,2.10489623,29549.0,29548.0,0.1345822]
[1609565746535,2.28532781,29549.0,29548.0,0.1345822]
[1609565749637,3.28532781,29549.0,29548.0,0.1345822]
[1609565750038,3.10489623,29549.0,29548.0,0.1345822]
[1609565750637,3.28532781,29549.0,29548.0,0.1345822]
[1609565755644,2.28532781,29549.0,29548.0,0.1345822]
[1609565756247,2.2849155,29549.0,29548.0,0.1345822]
[1609565757745,3.2849155,29549.0,29548.0,0.1345822]
[1609565758445,3.28532784,29549.0,29548.0,0.1345822]
[1609565762549,4.28532784,29549.0,29548.0,0.1345822]
[1609565763952,4.29579322,29549.0,29548.0,0.1345822]
[1609565765155,4.31651536,29549.0,29548.0,0.1345822]
[1609565767255,3.31651536,29549.0,29548.0,0.1345822]
[1609565767658,2.31651536,29549.0,29548.0,0.1345822]
[1609565768657,2.29579322,29549.0,29548.0,0.1345822]
[1609565769057,3.29579322,29549.0,29548.0,0.1345822]
[1609565769758,4.29579322,29549.0,29548.0,0.1345822]
[1609565770260,3.29579322,29549.0,29548.0,0.1345822]
[1609565771364,3.3165103,29549.0,29548.0,0.1345822]
[1609565771761,2.3165103,29549.0,29548.0,0.1345822]
[1609565772363,3.3165103,29549.0,29548.0,0.1345822]
[1609565772966,3.29579322,29549.0,29548.0,0.1345822]
[1609565773865,3.29579322,29549.0,29539.0,0.16966]
[1609565774065,3.29579322,29549.0,29533.0,1.74342224]
[1609565774464,0.00041241,29548.0,29540.0,0.00037304]
[1609565774664,0.00041241,29548.0,29534.0,0.00037304]
[1609565774865,0.18043158,29541.0,29532.0,0.18043158]
[1609565775267,0.00041241,29540.0,29533.0,0.04161377]
[1609565775666,1.0,29539.0,29533.0,0.04161377]
[1609565776472,0.00041241,29538.0,29533.0,0.04161377]
[1609565776873,0.00041241,29538.0,29536.0,0.18043158]
[1609565777270,0.00041241,29538.0,29537.0,0.00037304]
[1609565777671,1.00041241,29538.0,29537.0,0.00037304]
[1609565778772,1.18084399,29538.0,29537.0,0.00037304]
[1609565779673,0.18084399,29538.0,29537.0,0.00037304]
[1609565779872,0.18084399,29538.0,29537.0,0.00037306]
[1609565782777,0.18043158,29538.0,29537.0,0.00037306]
[1609565785084,0.03115815,29544.0,29537.0,4.82047306]
[1609565785282,0.03115815,29544.0,29537.0,0.00037306]
[1609565785484,0.00041238,29543.0,29542.0,4.8808]
[1609565785684,0.00041238,29543.0,29538.0,0.00037302]
[1609565785885,0.00041238,29543.0,29542.0,5.6831]
[1609565786086,0.03115815,29544.0,29542.0,5.683473]
[1609565786587,0.03115815,29544.0,29543.0,0.000373]
[1609565786786,0.01045107,29547.0,29543.0,0.18080458]
[1609565786986,0.00041237,29544.0,29543.0,0.18080458]
[1609565787385,0.00041237,29546.0,29544.0,0.000373]
[1609565787586,2.2849155,29549.0,29543.0,0.18080458]
[1609565787786,0.00041236,29545.0,29543.0,0.18043158]
[1609565788189,0.00041236,29548.0,29544.0,0.000373]
[1609565788388,2.2849155,29549.0,29544.0,0.000373]
[1609565788588,0.00041236,29548.0,29544.0,0.000373]
[1609565788788,0.00041236,29548.0,29547.0,0.18043158]
[1609565789390,0.00041236,29548.0,29547.0,0.18080458]
[1609565792495,3.2849155,29549.0,29547.0,0.18080458]
[1609565792795,0.00041235,29548.0,29547.0,0.18080459]
[1609565793598,0.00041235,29548.0,29547.0,0.18043158]
[1609565794001,0.00041235,29548.0,29547.0,0.18080458]
[1609565798610,0.00041235,29548.0,29547.0,0.18043158]
[1609565798810,0.00041235,29548.0,29547.0,0.18080461]
[1609565799311,0.01087779,29548.0,29547.0,0.18080461]
[1609565800813,0.01087779,29548.0,29547.0,5.09230461]
[1609565802113,0.00041235,29548.0,29547.0,5.09230461]
[1609565808316,0.00041235,29548.0,29547.0,6.09230461]
[1609565808517,0.00041235,29548.0,29547.0,0.18080461]
[1609565815128,0.00041235,29548.0,29547.0,0.86200461]
[1609565822537,2.10448392,29549.0,29547.0,0.86200461]
[1609565822836,2.10448392,29549.0,29548.0,0.000373]
[1609565823337,2.10489624,29549.0,29548.0,0.000373]
[1609565824337,2.10448392,29549.0,29548.0,0.000373]
[1609565830144,2.10489625,29549.0,29548.0,0.000373]
[1609565839357,2.28532783,29549.0,29548.0,0.000373]
[1609565845767,3.28532783,29549.0,29548.0,0.000373]
[1609565847770,2.28532783,29549.0,29548.0,0.000373]
[1609565857180,2.10489625,29549.0,29548.0,0.000373]
[1609565867589,2.28532783,29549.0,29548.0,0.000373]
[1609565867789,3.28532783,29549.0,29548.0,0.000373]
[1609565869093,3.90268764,29549.0,29548.0,0.000373]
[1609565869693,2.90268764,29549.0,29548.0,0.000373]
[1609565870695,3.64319259,29549.0,29548.0,0.000373]
[1609565871096,4.13727364,29549.0,29548.0,0.000373]
[1609565871698,5.13727364,29549.0,29548.0,0.000373]
[1609565877505,6.13727364,29549.0,29548.0,0.000373]
[1609565877707,5.64319259,29549.0,29548.0,0.000373]
[1609565877906,4.64319259,29549.0,29545.0,0.000373]
[1609565878307,4.64319259,29549.0,29548.0,0.000373]
[1609565878506,5.13686766,29549.0,29546.0,0.000373]
[1609565878707,5.13728002,29549.0,29548.0,0.000373]
[1609565879106,5.13686766,29549.0,29547.0,0.000373]
[1609565879307,5.13728002,29549.0,29548.0,0.000373]
[1609565879507,4.02542045,29549.0,29548.0,0.000373]
[1609565879710,3.02542045,29549.0,29548.0,0.000373]
[1609565879908,3.02583282,29549.0,29545.0,0.000373]
[1609565880108,3.64235485,29549.0,29548.0,0.000373]
[1609565880307,3.64194248,29549.0,29546.0,0.000373]
[1609565880708,3.64194248,29549.0,29545.0,0.000373]
[1609565880909,3.64194248,29549.0,29547.0,0.000373]
[1609565881109,3.64194248,29549.0,29546.0,0.000373]
[1609565881409,3.64194248,29549.0,29545.0,0.000373]
[1609565881609,3.64194248,29549.0,29547.0,0.000373]
[1609565881810,4.13603764,29549.0,29547.0,0.000373]
[1609565882110,4.13603764,29549.0,29546.0,0.000373]
[1609565882411,4.13603764,29549.0,29547.0,0.000373]
[1609565882811,0.01047566,29547.0,29546.0,0.000373]
[1609565883012,0.01047566,29547.0,29544.0,4.8791]
[1609565883212,0.01088803,29547.0,29546.0,0.00037301]
[1609565883512,0.01047566,29547.0,29545.0,0.00037301]
[1609565883713,0.18043158,29546.0,29544.0,4.8791]
[1609565884011,0.18043158,29546.0,29545.0,0.00037301]
[1609565884511,0.18043158,29546.0,29543.0,0.14968]
[1609565884512,0.19563117,29546.0,29544.0,0.00037301]
[1609565884812,0.00041238,29545.0,29544.0,0.00037301]
[1609565885813,1.00041238,29545.0,29544.0,0.00037301]
[1609565889420,1.00041238,29545.0,29543.0,0.14968]
[1609565889616,1.1002,29544.0,29543.0,0.03245301]
[1609565889817,1.1006124,29544.0,29537.0,0.15401]
[1609565890017,1.1006124,29544.0,29543.0,0.00037301]
[1609565890418,0.00041242,29543.0,29538.0,0.00037301]
[1609565890617,1.10061245,29544.0,29534.0,0.18043158]
[1609565890818,0.00041245,29542.0,29539.0,0.00037304]
[1609565891018,0.1014,29541.0,29539.0,0.00037304]
[1609565891217,0.1014,29541.0,29535.0,0.00037304]
[1609565891418,0.1014,29541.0,29540.0,0.00037304]
[1609565891617,0.1014,29541.0,29536.0,0.00037306]
[1609565891818,0.18043158,29537.0,29536.0,0.00037306]
[1609565892017,0.18043158,29537.0,29535.0,0.00037306]
[1609565892218,0.18043158,29537.0,29536.0,0.00037306]
[1609565892619,0.18043158,29537.0,29535.0,0.00037306]
[1609565893020,0.18043158,29537.0,29536.0,0.00037306]
[1609565893219,0.18043158,29537.0,29535.0,0.00037306]
[1609565893420,0.18043158,29537.0,29536.0,0.00037306]
[1609565893919,0.18043158,29537.0,29535.0,0.00037306]
[1609565894120,0.18084406,29537.0,29535.0,0.00037306]
[1609565894322,0.18084406,29537.0,29536.0,0.00037306]
[1609565894521,0.18043158,29537.0,29536.0,0.00037306]
[1609565894721,0.18084406,29537.0,29535.0,0.00037306]
[1609565895021,0.18084406,29537.0,29536.0,0.00037306]
[1609565895324,0.18084406,29537.0,29535.0,0.00037306]
[1609565895523,0.18084406,29537.0,29536.0,0.00037308]
[1609565896025,0.18084407,29537.0,29535.0,0.00037308]
[1609565896324,0.18043158,29537.0,29536.0,0.00037308]
[1609565896624,0.18084406,29537.0,29535.0,0.00037308]
[1609565896824,0.18084406,29537.0,29536.0,0.00037308]
[1609565897224,0.18043158,29537.0,29536.0,0.00037308]
[1609565897424,0.18084405,29537.0,29535.0,0.00037306]
[1609565897624,0.18043158,29537.0,29536.0,0.00037306]
[1609565898226,0.18043158,29537.0,29535.0,0.00037306]
[1609565898429,0.18084404,29537.0,29536.0,0.00037306]
[1609565898729,0.18043158,29537.0,29536.0,0.00037306]
[1609565898930,0.18084404,29537.0,29535.0,0.00037306]
[1609565899229,0.18084404,29537.0,29536.0,0.00037306]
[1609565899632,0.18084404,29537.0,29535.0,0.00037306]
[1609565899831,0.18043158,29537.0,29536.0,0.00037306]
[1609565900435,0.18043158,29537.0,29535.0,0.00037306]
[1609565900633,0.18043158,29537.0,29536.0,0.00037306]
[1609565901234,0.18043158,29537.0,29535.0,0.00037304]
[1609565901434,0.18043158,29537.0,29536.0,0.00037304]
[1609565901935,0.18043158,29537.0,29535.0,0.00037304]
[1609565902136,0.18043158,29537.0,29536.0,0.00037304]
[1609565902736,0.18043158,29537.0,29535.0,0.00037304]
[1609565902938,0.18043158,29537.0,29536.0,0.00037304]
[1609565903538,0.18043158,29537.0,29535.0,0.00037304]
[1609565903737,0.18043158,29537.0,29536.0,0.00037304]
[1609565904238,0.18043158,29537.0,29535.0,0.00037304]
[1609565904641,0.18043158,29537.0,29536.0,0.00037304]
[1609565905042,0.18043158,29537.0,29535.0,0.00037304]
[1609565905341,0.18043158,29537.0,29531.0,0.00037304]
[1609565905544,0.0004125,29536.0,29531.0,0.00037304]
[1609565905742,1.18043158,29532.0,29531.0,0.00037304]
[1609565906742,1.18043158,29532.0,29527.0,0.00037309]
[1609565907744,1.0,29530.0,29527.0,0.00037309]
[1609565907945,0.18043158,29528.0,29527.0,0.00037309]
[1609565909551,0.18043158,29528.0,29519.0,0.00037312]
[1609565909750,1.0,29529.0,29521.0,0.18043158]
[1609565910350,1.0,29529.0,29522.0,0.00037312]
[1609565911754,0.18043158,29523.0,29522.0,0.00037312]
[1609565912754,0.18043158,29523.0,29522.0,0.10137312]
[1609565913354,0.18043158,29523.0,29522.0,0.00037312]
[1609565913556,0.17837196,29523.0,29522.0,0.00037312]
[1609565918964,5.61307196,29523.0,29522.0,0.00037312]
[1609565919165,5.71597196,29523.0,29522.0,0.00037312]
[1609565919367,5.61307196,29523.0,29513.0,0.00037238]
[1609565919565,5.61307196,29523.0,29522.0,0.00037238]
[1609565919765,0.00041263,29522.0,29514.0,0.00037244]
[1609565919967,0.18043158,29515.0,29514.0,0.00037244]
[1609565920167,0.18043158,29515.0,29513.0,0.18043158]
[1609565920367,0.18043158,29515.0,29514.0,0.00037246]
[1609565923971,0.18043158,29515.0,29513.0,0.18043158]
[1609565927177,0.18043158,29515.0,29514.0,4.8758]
[1609565927378,0.18043158,29515.0,29514.0,4.87617243]
[1609565927779,0.18043158,29515.0,29514.0,5.87617243]
[1609565927980,0.18043158,29518.0,29514.0,5.87617243]
[1609565928182,0.13484,29520.0,29514.0,5.87617243]
[1609565928383,0.00428811,29525.0,29514.0,5.87617243]
[1609565928583,0.00428811,29525.0,29515.0,0.0003724]
[1609565928989,0.15069,29526.0,29515.0,0.0003724]
[1609565929183,0.00428497,29528.0,29515.0,0.0003724]
[1609565929984,0.00428497,29528.0,29527.0,0.18043158]
[1609565930185,1.0,29529.0,29527.0,0.18043158]
[1609565930384,0.00041259,29528.0,29527.0,0.18043158]
[1609565931994,0.18084417,29528.0,29527.0,0.18043158]
[1609565933896,0.18084417,29528.0,29527.0,0.83313158]
[1609565935795,0.18084417,29528.0,29527.0,0.18043158]
[1609565937698,0.18084417,29528.0,29527.0,5.11683158]
[1609565937900,0.18043158,29528.0,29527.0,5.11720394]
[1609565938101,0.01469131,29531.0,29527.0,5.11720394]
[1609565938102,0.18471675,29531.0,29527.0,5.11720394]
[1609565938500,0.18471675,29531.0,29528.0,0.00037233]
[1609565940003,0.18043158,29531.0,29530.0,0.18043158]
[1609565940404,0.18043158,29531.0,29530.0,0.18080389]
[1609565957518,0.12578,29536.0,29530.0,0.18080389]
[1609565957719,0.00429751,29537.0,29530.0,0.18080389]
[1609565957917,1.0,29535.0,29530.0,0.18080389]
[1609565958119,1.0,29535.0,29534.0,0.18043158]
[1609565958319,1.0,29535.0,29534.0,0.87223158]
[1609565958719,1.0,29535.0,29534.0,0.87260387]
[1609565960120,1.18043158,29535.0,29534.0,0.87260387]
[1609565960325,1.18084406,29535.0,29534.0,0.87260387]
[1609565960524,1.18084406,29535.0,29534.0,0.00037229]
[1609565960922,0.1001,29534.0,29523.0,4.37666]
[1609565961322,0.00041253,29533.0,29524.0,0.00037231]
[1609565961523,0.00430118,29530.0,29524.0,0.00037231]
[1609565961923,1.0,29527.0,29524.0,0.00037231]
[1609565962123,1.0,29527.0,29525.0,0.18043158]
[1609565962724,1.0,29527.0,29526.0,0.00037233]
[1609565964126,1.18043158,29527.0,29526.0,0.00037233]
[1609565965733,0.18043158,29527.0,29526.0,0.00037233]
[1609565967033,0.00430299,29529.0,29526.0,0.00037233]
[1609565967232,0.00430299,29529.0,29526.0,4.01097233]
[1609565967634,0.00430299,29529.0,29527.0,0.0003723]
[1609565967833,0.00430299,29529.0,29527.0,1.0003723]
[1609565968133,0.00430299,29529.0,29528.0,0.18080384]
[1609565972539,0.01475185,29530.0,29528.0,0.18080384]
[1609565972939,0.01475185,29530.0,29529.0,0.00037224]
[1609565973342,0.10648,29534.0,29529.0,0.00037224]
[1609565973643,0.18043158,29538.0,29529.0,0.00037224]
[1609565973844,0.00041247,29533.0,29529.0,0.00037224]
[1609565974044,0.11344247,29533.0,29529.0,0.00037224]
[1609565974243,0.11303,29533.0,29532.0,0.18043158]
[1609565974643,0.11344248,29533.0,29532.0,0.18080358]
[1609565975243,0.11344248,29533.0,29532.0,3.99020358]
[1609565976144,0.29387406,29533.0,29532.0,3.99020358]
[1609565976546,0.29387406,29533.0,29532.0,0.18080358]
[1609565978348,0.29387406,29533.0,29532.0,0.000372]
[1609565978648,0.39597406,29533.0,29528.0,0.000372]
[1609565978849,0.00041248,29532.0,29528.0,0.000372]
[1609565979450,0.29346158,29533.0,29528.0,0.000372]
[1609565979649,0.0004125,29531.0,29528.0,0.000372]
[1609565980050,0.0004125,29532.0,29528.0,0.000372]
[1609565980250,0.18043158,29529.0,29528.0,0.000372]
[1609565987259,0.28133158,29529.0,29528.0,0.000372]
[1609565987457,0.18043158,29529.0,29528.0,0.000372]
[1609565999171,0.18084409,29529.0,29528.0,0.000372]
[1609566001077,0.18515864,29529.0,29528.0,0.000372]
[1609566003177,5.01324409,29529.0,29528.0,0.000372]
[1609566003981,5.02803677,29529.0,29520.0,0.04162622]
[1609566004181,0.00041254,29528.0,29519.0,0.04162645]
[1609566004381,0.00041254,29528.0,29521.0,0.00037206]
[1609566004682,0.00041254,29528.0,29520.0,0.22205802]
[1609566004885,0.00472687,29528.0,29522.0,0.00037206]
[1609566005283,0.00472687,29528.0,29521.0,0.00037206]
[1609566005483,0.00041254,29527.0,29521.0,0.00037206]
[1609566005783,1.00041254,29527.0,29521.0,0.00037206]
[1609566006288,0.00041254,29526.0,29521.0,0.00037206]
[1609566006486,0.18043158,29522.0,29521.0,0.00037206]
[1609566009689,0.18043158,29522.0,29521.0,4.02347206]
[1609566009890,0.18043158,29522.0,29521.0,4.06472591]
[1609566010489,0.18043158,29525.0,29521.0,0.04162591]
[1609566012590,0.18043158,29525.0,29524.0,0.18043158]
[1609566013091,0.18043158,29525.0,29524.0,0.18080362]
[1609566013292,0.17837216,29525.0,29524.0,0.18080362]
[1609566015395,0.17837216,29525.0,29524.0,0.2220551]
[1609566015797,0.17837216,29525.0,29524.0,0.18080362]
[1609566017998,0.1006,29530.0,29524.0,0.18080362]
[1609566018398,0.1006,29530.0,29525.0,0.00037204]
[1609566018698,0.1006,29530.0,29529.0,0.18043158]
[1609566019098,0.10101252,29530.0,29529.0,0.18080362]
[1609566019600,0.1006,29530.0,29529.0,0.18080362]
[1609566020002,0.10101252,29530.0,29529.0,0.18080362]
[1609566021002,0.1006,29530.0,29529.0,0.18080362]
[1609566022504,0.10101252,29530.0,29529.0,0.18080362]
[1609566023205,0.1006,29530.0,29529.0,0.18080362]
[1609566023405,0.10101252,29530.0,29529.0,0.18080362]
[1609566024008,0.1006,29530.0,29529.0,0.18080362]
[1609566024209,0.10101252,29530.0,29529.0,0.18080362]
[1609566024409,0.1006,29530.0,29529.0,0.18080362]
[1609566024812,0.28103158,29530.0,29529.0,0.18080362]
[1609566027816,1.2814441,29530.0,29529.0,0.18080362]
[1609566028916,1.2814441,29530.0,29529.0,0.00037204]
[1609566029116,1.2814441,29530.0,29527.0,0.00037206]
[1609566029317,5.8145441,29530.0,29527.0,0.00037206]
[1609566029520,5.8145441,29530.0,29529.0,0.00037206]
[1609566029718,5.81413158,29530.0,29528.0,0.00037206]
[1609566029917,4.81454412,29530.0,29529.0,0.00037206]
[1609566030218,4.81454412,29530.0,29527.0,0.00037204]
[1609566030417,4.81454412,29530.0,29529.0,0.00037204]
[1609566030818,0.00041254,29529.0,29528.0,0.00037204]
[1609566031016,4.81454412,29530.0,29529.0,0.00037204]
[1609566031217,5.4516678,29530.0,29528.0,0.00037204]
[1609566031518,5.45208034,29530.0,29529.0,0.00037204]
[1609566031718,5.4516678,29530.0,29529.0,0.00037204]
[1609566032118,5.43132238,29530.0,29527.0,0.00037204]
[1609566032318,5.43132238,29530.0,29529.0,0.00037204]
[1609566032519,0.00041253,29529.0,29528.0,0.00037204]
[1609566032719,0.00041253,29529.0,29526.0,0.13043173]
[1609566032921,0.18043158,29527.0,29526.0,0.13043173]
[1609566033121,0.18084411,29527.0,29526.0,0.13080376]
[1609566034620,0.18043158,29527.0,29526.0,0.13080376]
[1609566034920,0.18084412,29527.0,29526.0,0.13080376]
[1609566035821,1.18084412,29527.0,29526.0,0.13080376]
[1609566036222,1.18043158,29527.0,29526.0,0.13080376]
[1609566036424,1.18084412,29527.0,29526.0,0.13080376]
[1609566036724,1.18043158,29527.0,29526.0,0.13080376]
[1609566037025,1.18084412,29527.0,29526.0,0.13080376]
[1609566037725,1.1851626,29527.0,29526.0,0.13080376]
[1609566043132,1.18084412,29527.0,29526.0,0.13080376]
[1609566043333,1.98934412,29527.0,29526.0,0.13080376]
[1609566043536,1.98934412,29527.0,29526.0,0.00037203]
[1609566043934,1.99366301,29527.0,29518.0,0.00037199]
[1609566044134,1.99366301,29527.0,29526.0,0.00037199]
[1609566044335,1.99325047,29527.0,29519.0,0.00037199]
[1609566044734,1.99325047,29527.0,29517.0,1.77904838]
[1609566044735,1.99325047,29527.0,29518.0,0.00037199]
[1609566044935,1.81281889,29527.0,29520.0,0.00037199]
[1609566045136,1.81281889,29527.0,29519.0,0.00037199]
[1609566045436,1.81281889,29527.0,29518.0,0.00037199]
[1609566045637,1.81281889,29527.0,29520.0,0.00037199]
[1609566045837,0.81281889,29527.0,29520.0,0.00037199]
[1609566046037,0.81281889,29527.0,29519.0,0.00037199]
[1609566046238,0.81281889,29527.0,29514.0,2.20207746]
[1609566046239,0.00431853,29523.0,29518.0,0.00037199]
[1609566046437,0.1019,29522.0,29520.0,0.00037199]
[1609566046737,0.00041264,29521.0,29515.0,0.00037199]
[1609566046940,0.18043158,29516.0,29514.0,0.18043158]
[1609566047239,0.18043158,29516.0,29515.0,0.000372]
[1609566050640,0.17837151,29516.0,29515.0,0.000372]
[1609566052042,0.17837151,29516.0,29514.0,0.18043158]
[1609566052243,0.17837151,29516.0,29515.0,0.00037201]
[1609566064059,0.17837151,29516.0,29515.0,0.04163462]
[1609566064959,0.17631152,29516.0,29515.0,0.04163462]
[1609566066661,5.80891152,29516.0,29515.0,0.04163462]
[1609566067061,5.80891152,29516.0,29515.0,0.00037201]
[1609566067462,5.80891152,29516.0,29514.0,0.00037204]
[1609566068163,0.00041271,29515.0,29514.0,0.00037204]
[1609566068563,0.00041271,29515.0,29510.0,0.0003721]
[1609566068964,0.00041271,29515.0,29514.0,0.0003721]
[1609566069165,0.00041271,29515.0,29511.0,0.0003721]
[1609566069363,0.00041271,29515.0,29510.0,0.0003721]
[1609566069567,0.00041271,29515.0,29512.0,0.0003721]